bitfinex-derivatives/quotes_SOLF0:USTF0_20230902
["timestamp","ask_amount","ask_price","bid_price","bid_amount"]
[1693619114559,111.34,19.429,19.425,15.44]
[1693619114759,111.34,19.429,19.423,210.93212103]
[1693619115057,111.34,19.429,19.425,15.44]
[1693619115257,111.34,19.429,19.423,210.93212103]
[1693619115459,111.34,19.429,19.425,15.44]
[1693619115649,111.34,19.429,19.423,210.93212103]
[1693619115849,111.34,19.429,19.425,15.44]
[1693619116056,111.34,19.429,19.423,210.93212103]
[1693619116253,111.34,19.429,19.425,15.44]
[1693619116457,111.34,19.429,19.423,210.93212103]
[1693619116656,111.34,19.429,19.425,15.44]
[1693619116859,111.34,19.429,19.424,9.4560482]
[1693619116860,111.34,19.429,19.423,210.93212103]
[1693619117059,111.34,19.429,19.425,15.44]
[1693619117260,111.34,19.429,19.423,210.93212103]
[1693619117462,111.34,19.429,19.425,15.44]
[1693619117661,111.34,19.429,19.423,210.93212103]
[1693619117962,111.34,19.429,19.425,15.44]
[1693619118163,111.34,19.429,19.423,210.93212103]
[1693619118357,111.34,19.429,19.425,15.44]
[1693619118557,111.34,19.429,19.423,210.93212103]
[1693619118758,111.34,19.429,19.425,15.44]
[1693619118954,111.34,19.429,19.423,210.93212103]
[1693619119256,111.34,19.429,19.425,15.44]
[1693619119452,111.34,19.429,19.423,210.93212103]
[1693619119656,111.34,19.429,19.425,15.44]
[1693619119857,111.34,19.429,19.423,210.93212103]
[1693619120065,111.34,19.429,19.425,15.44]
[1693619120264,111.34,19.429,19.423,210.93212103]
[1693619120464,111.34,19.429,19.425,15.44]
[1693619120664,111.34,19.429,19.426,9.45602105]
[1693619120865,111.34,19.429,19.423,210.93212103]
[1693619121067,111.34,19.429,19.425,15.44]
[1693619121258,111.34,19.429,19.426,9.45549429]
[1693619121461,111.34,19.429,19.423,210.93212103]
[1693619121657,111.34,19.429,19.425,15.44]
[1693619121866,111.34,19.429,19.426,9.45548945]
[1693619122067,111.34,19.429,19.425,15.44]
[1693619122268,111.34,19.429,19.426,9.45548506]
[1693619122467,111.34,19.429,19.423,210.93212103]
[1693619122669,111.34,19.429,19.425,15.44]
[1693619122968,111.34,19.429,19.426,9.4554824]
[1693619123169,111.34,19.429,19.423,210.93212103]
[1693619123365,111.34,19.429,19.425,15.44]
[1693619123665,111.34,19.429,19.426,9.45548174]
[1693619123860,111.34,19.429,19.425,15.44]
[1693619124067,111.34,19.429,19.426,9.45555023]
[1693619124266,111.34,19.429,19.423,210.93212103]
[1693619124471,111.34,19.429,19.425,15.44]
[1693619124665,111.34,19.429,19.426,9.4555475]
[1693619124865,111.34,19.429,19.423,210.93212103]
[1693619125165,111.34,19.429,19.425,15.44]
[1693619125369,111.34,19.429,19.423,210.93212103]
[1693619125565,111.34,19.429,19.425,15.44]
[1693619125765,111.34,19.429,19.423,210.93212103]
[1693619125965,111.34,19.429,19.425,15.44]
[1693619126165,111.34,19.429,19.423,210.93212103]
[1693619126367,111.34,19.429,19.425,15.44]
[1693619126566,111.34,19.429,19.423,210.93212103]
[1693619126766,111.34,19.429,19.425,15.44]
[1693619126961,111.34,19.429,19.423,210.93212103]
[1693619127166,111.34,19.429,19.424,9.45605842]
[1693619127364,111.34,19.429,19.425,15.44]
[1693619127568,111.34,19.429,19.423,210.93212103]
[1693619127767,111.34,19.429,19.425,15.44]
[1693619128069,111.34,19.429,19.423,210.93212103]
[1693619128271,111.34,19.429,19.425,15.44]
[1693619128468,111.34,19.429,19.423,210.93212103]
[1693619128663,111.34,19.429,19.425,15.44]
[1693619128867,111.34,19.429,19.423,210.93212103]
[1693619129173,111.34,19.429,19.425,15.44]
[1693619129376,111.34,19.429,19.423,210.93212103]
[1693619129570,111.34,19.429,19.425,15.44]
[1693619129874,111.34,19.429,19.426,9.45602863]
[1693619130168,111.34,19.429,19.423,210.93212103]
[1693619130375,111.34,19.429,19.425,15.44]
[1693619130573,111.34,19.429,19.423,210.93076048]
[1693619130774,111.34,19.429,19.425,15.44]
[1693619130975,111.34,19.429,19.425,210.93076048]
[1693619131170,111.34,19.429,19.426,210.93076048]
[1693619131374,111.34,19.429,19.427,210.93076048]
[1693619131675,111.34,19.429,19.428,210.93076048]
[1693619131869,111.34,19.429,19.423,210.93076048]
[1693619132067,111.34,19.431,19.425,15.44]
[1693619132566,111.34,19.431,19.425,210.93076048]
[1693619132764,111.34,19.434,19.427,111.34]
[1693619132965,20.8144,19.436,19.431,15.44]
[1693619133372,111.34,19.437,19.431,15.44]
[1693619134177,111.34,19.442,19.435,111.34]
[1693619142080,111.34,19.441,19.435,111.34]
[1693619142276,111.34,19.441,19.434,111.34]
[1693619147481,111.34,19.441,19.435,9.45029492]
[1693619149179,111.34,19.443,19.436,111.34]
[1693619151987,111.34,19.443,19.437,111.34]
[1693619155489,111.34,19.445,19.438,111.34]
[1693619158691,19.9772,19.448,19.443,111.34]
[1693619161994,19.9772,19.448,19.445,111.34]
[1693619162493,29.03417207,19.451,19.445,111.34]
[1693619164591,29.03417207,19.451,19.447,111.34]
[1693619164786,20.9342,19.45,19.447,111.34]
[1693619164993,111.34,19.454,19.447,111.34]
[1693619172000,111.34,19.456,19.448,111.34]
[1693619172196,143.30161768,19.456,19.448,111.34]
[1693619179204,31.96161768,19.456,19.45,111.34]
[1693619185506,31.96161768,19.456,19.451,111.34]
[1693619190811,111.34,19.455,19.448,111.34]
[1693619192013,111.34,19.454,19.447,111.34]
[1693619199221,31.96161768,19.456,19.449,111.34]
[1693619201219,111.34,19.453,19.446,111.34]
[1693619201616,31.96161768,19.456,19.436,42.56457115]
[1693619201822,111.34,19.447,19.44,111.34]
[1693619206427,111.34,19.447,19.442,0.1239517]
[1693619206623,111.34,19.447,19.44,111.34]
[1693619207516,111.34,19.447,19.446,0.06196345]
[1693619207722,111.34,19.447,19.442,0.1239517]
[1693619211529,111.34,19.445,19.438,111.52596475]
[1693619211921,111.34,19.444,19.438,0.18596475]
[1693619215125,62.58980796,19.451,19.438,0.18596475]
[1693619215332,111.34,19.439,19.434,0.24800262]
[1693619215524,138.42182232,19.439,19.434,0.24800262]
[1693619218734,111.34,19.436,19.434,0.24800262]
[1693619220232,111.34,19.436,19.428,42.04010281]
[1693619220432,111.34,19.436,19.427,111.34]
[1693619221032,111.34,19.436,19.427,153.2782716]
[1693619221530,111.34,19.433,19.425,111.34]
[1693619221727,111.34,19.43,19.423,111.34]
[1693619223435,111.34,19.427,19.42,111.34]
[1693619223637,111.34,19.427,19.421,9.91205875]
[1693619223935,111.34,19.427,19.422,0.45454546]
[1693619224635,111.34,19.43,19.422,111.79454546]
[1693619224835,111.34,19.43,19.423,0.45454546]
[1693619228338,111.34,19.43,19.422,111.34]
[1693619230942,111.34,19.43,19.423,9.45734144]
[1693619231139,111.34,19.43,19.422,111.34]
[1693619232041,111.34,19.43,19.423,9.45733935]
[1693619232241,111.34,19.43,19.422,111.34]
[1693619233340,111.34,19.43,19.423,9.45733987]
[1693619239550,111.34,19.428,19.423,9.45733987]
[1693619239848,111.34,19.428,19.422,0.45454546]
[1693619240050,111.34,19.428,19.422,9.91184655]
[1693619241948,111.34,19.427,19.422,9.91184655]
[1693619242251,111.34,19.427,19.423,9.45730109]
[1693619242446,111.34,19.427,19.421,0.45454546]
[1693619242646,111.34,19.427,19.421,9.91183354]
[1693619242847,111.34,19.427,19.422,0.45454546]
[1693619246951,111.34,19.427,19.421,9.91183354]
[1693619247353,111.34,19.427,19.422,15.45]
[1693619247551,111.34,19.427,19.423,9.45728808]
[1693619250454,111.34,19.427,19.422,15.45]
[1693619250654,111.34,19.427,19.423,9.45722538]
[1693619251247,111.34,19.433,19.426,111.34]
[1693619251845,111.34,19.433,19.427,9.4544091]
[1693619252051,111.34,19.434,19.427,120.7944091]
[1693619252354,111.34,19.434,19.427,111.34]
[1693619257351,111.34,19.43,19.423,111.34]
[1693619257656,111.34,19.427,19.421,0.45454546]
[1693619257855,111.34,19.427,19.421,9.91097909]
[1693619264353,111.34,19.424,19.421,9.45643363]
[1693619264553,111.34,19.424,19.416,111.34]
[1693619264761,111.34,19.424,19.417,9.45787175]
[1693619267359,111.34,19.423,19.417,9.45787175]
[1693619270455,111.34,19.423,19.416,151.73526504]
[1693619271960,111.34,19.421,19.416,40.39526504]
[1693619272160,111.34,19.421,19.414,111.34]
[1693619272356,111.34,19.421,19.415,9.46096244]
[1693619274457,111.34,19.425,19.418,111.34]
[1693619282066,111.34,19.423,19.416,111.34]
[1693619290673,111.34,19.42,19.412,111.34]
[1693619290975,111.34,19.42,19.413,9.46060412]
[1693619292073,111.34,19.419,19.413,9.46060412]
[1693619292274,111.34,19.419,19.414,9.46060412]
[1693619292470,111.34,19.419,19.415,9.46060412]
[1693619292677,111.34,19.419,19.411,111.34]
[1693619292877,111.34,19.419,19.412,9.46058639]
[1693619302076,21.3742,19.424,19.412,9.46058639]
[1693619302077,111.34,19.418,19.412,9.46058639]
[1693619309290,111.34,19.413,19.405,152.56348094]
[1693619311794,111.34,19.413,19.406,9.46524121]
[1693619312091,111.34,19.414,19.407,111.34]
[1693619315489,111.34,19.411,19.405,41.22348094]
[1693619315693,111.34,19.411,19.403,111.34]
[1693619315993,111.34,19.411,19.404,9.46517053]
[1693619319095,111.34,19.414,19.406,111.34]
[1693619319293,111.34,19.414,19.407,9.46517053]
[1693619321990,111.34,19.413,19.407,9.46517053]
[1693619322190,111.34,19.413,19.408,9.46517053]
[1693619322391,111.34,19.413,19.405,111.34]
[1693619322592,111.34,19.413,19.406,9.46351824]
[1693619323496,111.34,19.415,19.408,111.34]
[1693619323692,111.34,19.414,19.407,111.34]
[1693619323902,111.34,19.414,19.408,9.46334895]
[1693619324196,111.34,19.414,19.409,15.45]
[1693619324397,111.34,19.414,19.408,15.45]
[1693619324994,111.34,19.414,19.409,9.46330014]
[1693619326298,111.34,19.414,19.408,15.45]
[1693619327495,21.3742,19.424,19.407,111.34]
[1693619327496,21.3742,19.424,19.409,9.91518892]
[1693619327697,111.34,19.422,19.415,15.45]
[1693619331001,111.34,19.423,19.415,15.45]
[1693619332003,132.4437,19.422,19.415,15.45]
[1693619332193,111.34,19.422,19.415,15.45]
[1693619336104,111.34,19.424,19.416,111.34]
[1693619344515,20.9647,19.425,19.421,15.45]
[1693619344711,111.34,19.43,19.424,15.45]
[1693619344908,111.34,19.433,19.426,111.34]
[1693619349211,111.34,19.433,19.427,15.45]
[1693619351918,111.34,19.435,19.427,111.34]
[1693619359831,111.34,19.434,19.427,111.34]
[1693619369936,131.2657,19.438,19.43,111.34]
[1693619378041,111.34,19.435,19.428,111.34]
[1693619380447,111.34,19.432,19.425,111.34]
[1693619381349,111.34,19.432,19.422,0.45454546]
[1693619381350,111.34,19.429,19.422,111.79454546]
[1693619381647,111.34,19.426,19.419,111.34]
[1693619381945,111.34,19.424,19.416,111.34]
[1693619382939,111.34,19.427,19.42,15.44]
[1693619383740,111.34,19.427,19.419,111.34]
[1693619385648,111.34,19.423,19.416,153.03547324]
[1693619385943,111.34,19.423,19.416,111.34]
[1693619389840,20.8893,19.428,19.417,111.34]
[1693619389841,111.34,19.424,19.417,111.34]
[1693619396350,111.34,19.423,19.416,152.60814203]
[1693619399755,111.34,19.427,19.42,111.34]
[1693619401946,132.2293,19.428,19.421,111.34]
[1693619406662,111.34,19.431,19.424,111.34]
[1693619406862,133.1521,19.434,19.427,111.34]
[1693619411955,111.34,19.432,19.425,111.34]
[1693619412561,111.34,19.432,19.426,15.45]
[1693619426375,111.34,19.433,19.426,15.45]
[1693619433482,21.8121,19.434,19.429,111.34]
[1693619442084,21.8121,19.434,19.431,15.44]
[1693619442390,111.34,19.437,19.431,15.44]
[1693619448405,21.3364,19.441,19.436,111.34]
[1693619448702,21.3364,19.441,19.433,15.44]
[1693619448703,111.34,19.447,19.44,111.34]
[1693619450700,111.34,19.445,19.437,111.34]
[1693619454799,111.34,19.448,19.441,15.44]
[1693619455004,21.5832,19.451,19.445,111.34]
[1693619456304,21.5832,19.451,19.446,15.44]
[1693619457208,22.87719947,19.455,19.435,20.1885]
[1693619457209,22.87719947,19.455,19.449,15.44]
[1693619457398,22.87719947,19.455,19.448,111.34]
[1693619463118,111.34,19.456,19.449,15.44]
[1693619471220,21.2381,19.461,19.455,111.34]
[1693619471516,21.2381,19.461,19.456,111.34]
[1693619471920,111.34,19.464,19.456,111.34]
[1693619484224,111.34,19.458,19.452,0.45454546]
[1693619484430,111.34,19.458,19.45,111.34]
[1693619502042,132.1555,19.46,19.453,111.34]
[1693619507634,132.1555,19.46,19.446,41.03650384]
[1693619507635,111.34,19.457,19.45,111.34]
[1693619510240,111.34,19.456,19.449,111.34]
[1693619522060,111.34,19.457,19.449,111.34]
[1693619527567,111.34,19.452,19.444,111.79454546]
[1693619527966,111.34,19.452,19.444,111.34]
[1693619528166,111.34,19.452,19.444,111.79454546]
[1693619528465,111.34,19.452,19.444,111.34]
[1693619528671,111.34,19.452,19.444,111.79454546]
[1693619528871,111.34,19.452,19.444,111.34]
[1693619529062,111.34,19.452,19.444,111.79454546]
[1693619529265,111.34,19.452,19.444,111.34]
[1693619529469,111.34,19.452,19.444,111.79454546]
[1693619529671,111.34,19.452,19.444,111.34]
[1693619529869,111.34,19.452,19.444,111.79454546]
[1693619530063,111.34,19.452,19.444,111.34]
[1693619530270,111.34,19.452,19.444,111.79454546]
[1693619530469,111.34,19.452,19.444,111.34]
[1693619530771,111.34,19.452,19.444,111.79454546]
[1693619530969,111.34,19.452,19.444,111.34]
[1693619531169,111.34,19.452,19.444,111.79454546]
[1693619531371,111.34,19.452,19.444,111.34]
[1693619531571,111.34,19.452,19.444,111.79454546]
[1693619531772,111.34,19.452,19.444,111.34]
[1693619531973,111.34,19.453,19.445,111.34]
[1693619535068,111.34,19.456,19.448,111.34]
[1693619540377,111.34,19.455,19.448,15.43]
[1693619559895,111.34,19.455,19.447,111.34]
[1693619570502,111.34,19.454,19.447,111.34]
[1693619574307,111.34,19.451,19.443,126.77]
[1693619580812,111.34,19.451,19.443,111.34]
[1693619609134,43.22885768,19.438,19.429,0.24806634]
[1693619609429,111.34,19.434,19.431,15.43]
[1693619613836,111.34,19.434,19.433,0.12400904]
[1693619627344,111.34,19.434,19.431,15.43]
[1693619628551,111.34,19.434,19.433,0.12400904]
[1693619631347,111.34,19.434,19.43,20.1022]
[1693619631951,111.34,19.432,19.43,20.1022]
[1693619632746,111.34,19.432,19.429,0.18605079]
[1693619633148,111.34,19.43,19.429,0.18605079]
[1693619635256,111.34,19.43,19.425,22.12751736]
[1693619635448,111.34,19.427,19.425,22.12751736]
[1693619642549,111.34,19.427,19.425,21.8794]
[1693619643053,111.34,19.427,19.423,15.44]
[1693619643450,111.34,19.431,19.424,120.79721483]
[1693619643651,111.34,19.431,19.424,111.34]
[1693619656171,0.45454546,19.44,19.426,111.34]
[1693619656172,111.34,19.433,19.426,111.34]
[1693619656372,111.34,19.433,19.427,9.45513763]
[1693619656671,111.34,19.433,19.427,36.95864515]
[1693619656870,111.34,19.433,19.427,27.50350752]
[1693619661962,111.34,19.432,19.427,27.50350752]
[1693619665871,111.34,19.43,19.425,41.46989191]
[1693619666065,111.34,19.43,19.423,15.44]
[1693619666873,111.34,19.426,19.42,36.5942]
[1693619667171,111.34,19.426,19.421,9.4578418]
[1693619667567,111.34,19.426,19.42,36.5942]
[1693619667770,111.34,19.423,19.42,21.1542]
[1693619668473,111.34,19.423,19.42,62.66526535]
[1693619672080,111.34,19.423,19.42,21.1542]
[1693619674080,111.34,19.421,19.42,21.1542]
[1693619674282,111.34,19.421,19.415,41.75398866]
[1693619674479,111.34,19.421,19.413,21.6531]
[1693619674681,111.34,19.421,19.415,15.44]
[1693619674980,111.34,19.421,19.413,21.6531]
[1693619675181,111.34,19.421,19.415,15.44]
[1693619675380,111.34,19.421,19.413,21.6531]
[1693619675573,111.34,19.421,19.415,15.44]
[1693619675774,111.34,19.421,19.413,21.6531]
[1693619675973,111.34,19.421,19.415,15.44]
[1693619676174,111.34,19.421,19.413,21.6531]
[1693619676376,111.34,19.421,19.415,15.44]
[1693619676575,111.34,19.421,19.413,21.6531]
[1693619676783,111.34,19.421,19.415,15.44]
[1693619677084,111.34,19.421,19.413,21.6531]
[1693619677282,111.34,19.421,19.415,15.44]
[1693619677482,111.34,19.421,19.413,21.6531]
[1693619677682,111.34,19.421,19.415,15.44]
[1693619677883,111.34,19.421,19.413,21.6531]
[1693619678085,111.34,19.421,19.415,15.44]
[1693619678285,111.34,19.421,19.413,21.6531]
[1693619678488,111.34,19.421,19.415,15.44]
[1693619678683,111.34,19.421,19.413,21.6531]
[1693619678988,111.34,19.421,19.415,15.44]
[1693619679188,111.34,19.421,19.413,21.6531]
[1693619679390,111.34,19.421,19.415,15.44]
[1693619679589,111.34,19.421,19.413,21.6531]
[1693619679789,111.34,19.421,19.415,15.44]
[1693619679985,111.34,19.421,19.413,21.6531]
[1693619680190,111.34,19.417,19.414,9.4614629]
[1693619682092,111.34,19.418,19.414,9.4614629]
[1693619684388,111.34,19.418,19.415,15.44]
[1693619684593,111.34,19.418,19.416,9.4614629]
[1693619684794,111.34,19.418,19.413,21.6531]
[1693619684990,111.34,19.418,19.414,9.46085752]
[1693619692201,111.34,19.418,19.415,15.45]
[1693619692402,111.34,19.418,19.413,21.6531]
[1693619692605,111.34,19.418,19.415,15.45]
[1693619692903,111.34,19.418,19.413,21.6531]
[1693619693099,111.34,19.418,19.415,15.45]
[1693619693298,111.34,19.418,19.413,21.6531]
[1693619693500,111.34,19.418,19.415,15.45]
[1693619693799,111.34,19.418,19.413,21.6531]
[1693619694007,111.34,19.418,19.415,15.45]
[1693619694211,111.34,19.418,19.413,21.6531]
[1693619694412,111.34,19.418,19.415,15.45]
[1693619694711,111.34,19.418,19.416,9.46039051]
[1693619694911,111.34,19.418,19.413,21.6531]
[1693619695107,111.34,19.418,19.415,15.45]
[1693619695305,111.34,19.418,19.416,9.46038121]
[1693619695509,111.34,19.418,19.413,21.6531]
[1693619695705,0.45454546,19.429,19.416,111.34]
[1693619695912,111.34,19.423,19.418,15.45]
[1693619696103,111.34,19.423,19.416,111.34]
[1693619696309,111.34,19.423,19.418,15.45]
[1693619696509,111.34,19.423,19.416,111.34]
[1693619696712,111.34,19.423,19.418,15.45]
[1693619696913,111.34,19.423,19.42,15.45]
[1693619697113,111.34,19.423,19.416,111.34]
[1693619697314,111.34,19.423,19.418,15.45]
[1693619697513,111.34,19.423,19.42,15.45]
[1693619697813,111.34,19.423,19.416,111.34]
[1693619698008,111.34,19.423,19.418,15.45]
[1693619698214,111.34,19.423,19.42,15.45]
[1693619698507,111.34,19.423,19.416,111.34]
[1693619698713,111.34,19.423,19.418,15.45]
[1693619698907,111.34,19.423,19.42,15.45]
[1693619699110,111.34,19.423,19.416,111.34]
[1693619699309,111.34,19.423,19.418,15.45]
[1693619699510,111.34,19.423,19.42,15.45]
[1693619699717,111.34,19.423,19.416,111.34]
[1693619700014,111.34,19.423,19.418,15.45]
[1693619700215,111.34,19.423,19.419,9.45855285]
[1693619700516,111.34,19.421,19.413,132.9931]
[1693619700809,111.34,19.421,19.415,15.45]
[1693619701009,111.34,19.421,19.416,9.45907708]
[1693619701215,111.34,19.421,19.418,15.45]
[1693619701406,111.34,19.421,19.417,9.45907708]
[1693619701407,111.34,19.421,19.413,132.9931]
[1693619701714,111.34,19.421,19.415,15.45]
[1693619702016,111.34,19.421,19.416,9.45906206]
[1693619702313,111.34,19.421,19.418,15.45]
[1693619702616,111.34,19.421,19.413,132.9931]
[1693619702910,111.34,19.421,19.415,15.45]
[1693619703114,111.34,19.421,19.416,9.45903508]
[1693619703315,111.34,19.421,19.417,9.45903508]
[1693619703516,111.34,19.421,19.415,15.45]
[1693619703817,111.34,19.421,19.416,9.45903508]
[1693619704016,111.34,19.421,19.417,9.45903508]
[1693619704312,111.34,19.421,19.418,9.45903508]
[1693619704616,111.34,19.421,19.413,132.9931]
[1693619704808,111.34,19.421,19.415,15.45]
[1693619705112,111.34,19.421,19.416,9.45927969]
[1693619705316,111.34,19.421,19.417,9.45927969]
[1693619705512,111.34,19.421,19.413,132.9931]
[1693619705713,111.34,19.421,19.415,15.45]
[1693619705916,111.34,19.421,19.416,9.45918873]
[1693619706114,111.34,19.421,19.417,9.45918873]
[1693619706314,111.34,19.421,19.413,132.9931]
[1693619706515,111.34,19.421,19.415,15.45]
[1693619706716,111.34,19.421,19.413,132.9931]
[1693619706717,111.34,19.421,19.416,9.45917571]
[1693619707014,111.34,19.421,19.417,9.45917571]
[1693619707314,111.34,19.421,19.413,132.9931]
[1693619707514,111.34,19.421,19.415,15.45]
[1693619707817,111.34,19.421,19.416,9.45910652]
[1693619708014,111.34,19.421,19.418,15.45]
[1693619708219,111.34,19.421,19.413,132.9931]
[1693619708520,111.34,19.421,19.415,15.45]
[1693619708718,111.34,19.421,19.416,9.45906963]
[1693619708918,111.34,19.421,19.418,15.45]
[1693619709119,111.34,19.421,19.413,132.9931]
[1693619709314,111.34,19.421,19.415,15.45]
[1693619709617,111.34,19.421,19.416,9.45904847]
[1693619709819,111.34,19.421,19.418,15.45]
[1693619710019,111.34,19.421,19.413,132.9931]
[1693619710319,111.34,19.421,19.415,15.45]
[1693619710521,111.34,19.421,19.416,9.4590473]
[1693619710715,111.34,19.421,19.418,15.45]
[1693619711018,111.34,19.421,19.413,132.9931]
[1693619711323,111.34,19.421,19.415,15.45]
[1693619711618,111.34,19.421,19.416,9.45906608]
[1693619711810,111.34,19.421,19.418,15.45]
[1693619712014,111.34,19.421,19.413,132.9931]
[1693619712319,111.34,19.421,19.415,15.45]
[1693619712521,111.34,19.421,19.416,9.45905756]
[1693619712819,111.34,19.421,19.418,15.45]
[1693619713120,111.34,19.421,19.413,132.9931]
[1693619713419,111.34,19.421,19.415,15.45]
[1693619713621,111.34,19.421,19.416,9.45904963]
[1693619713819,111.34,19.421,19.417,9.45904963]
[1693619714016,111.34,19.421,19.418,9.45904963]
[1693619714217,111.34,19.421,19.413,132.9931]
[1693619714417,111.34,19.421,19.415,15.45]
[1693619714718,111.34,19.421,19.416,9.45903158]
[1693619714916,111.34,19.421,19.417,9.45903158]
[1693619715122,111.34,19.421,19.418,9.45903158]
[1693619715321,111.34,19.421,19.413,132.9931]
[1693619715520,111.34,19.421,19.415,15.45]
[1693619715819,111.34,19.421,19.416,9.4590254]
[1693619716019,111.34,19.421,19.417,9.4590254]
[1693619716320,111.34,19.421,19.418,9.4590254]
[1693619716521,111.34,19.421,19.413,132.9931]
[1693619716721,111.34,19.421,19.415,15.45]
[1693619716923,111.34,19.421,19.416,9.45902767]
[1693619717222,111.34,19.421,19.417,9.45902767]
[1693619717423,111.34,19.421,19.418,9.45902767]
[1693619717624,111.34,19.421,19.413,132.9931]
[1693619717924,111.34,19.421,19.415,15.45]
[1693619718126,111.34,19.421,19.416,9.45901379]
[1693619718425,111.34,19.421,19.417,9.45901379]
[1693619718722,111.34,19.421,19.418,9.45901379]
[1693619718915,111.34,19.421,19.413,132.9931]
[1693619719120,111.34,19.421,19.415,15.45]
[1693619719320,111.34,19.421,19.416,9.45901964]
[1693619719517,111.34,19.421,19.417,9.45901964]
[1693619719721,111.34,19.421,19.418,9.45901964]
[1693619719921,111.34,19.421,19.413,132.9931]
[1693619720121,111.34,19.421,19.415,15.45]
[1693619720328,111.34,19.421,19.416,9.45901619]
[1693619720523,111.34,19.421,19.415,15.45]
[1693619720825,111.34,19.421,19.416,9.45901619]
[1693619721126,111.34,19.421,19.417,9.45901619]
[1693619721422,111.34,19.421,19.418,9.45901619]
[1693619721625,111.34,19.421,19.413,132.9931]
[1693619721816,111.34,19.421,19.415,15.45]
[1693619722016,111.34,19.421,19.416,9.45901826]
[1693619722226,111.34,19.421,19.417,9.45901826]
[1693619722429,111.34,19.421,19.418,9.45901826]
[1693619722626,111.34,19.421,19.413,132.9931]
[1693619722829,111.34,19.421,19.415,15.45]
[1693619723027,111.34,19.421,19.416,9.45900476]
[1693619723227,111.34,19.421,19.417,9.45900476]
[1693619723420,111.34,19.421,19.418,9.45900476]
[1693619723623,111.34,19.421,19.413,132.9931]
[1693619723918,111.34,19.421,19.415,15.45]
[1693619724130,111.34,19.421,19.416,9.45900217]
[1693619724329,111.34,19.421,19.417,9.45900217]
[1693619724625,111.34,19.421,19.418,9.45900217]
[1693619724929,111.34,19.421,19.413,132.9931]
[1693619725143,111.34,19.421,19.415,15.45]
[1693619725328,111.34,19.421,19.416,9.45898971]
[1693619725626,111.34,19.421,19.417,9.45898971]
[1693619725928,111.34,19.421,19.418,9.45898971]
[1693619726125,111.34,19.421,19.413,132.9931]
[1693619726325,111.34,19.421,19.415,15.45]
[1693619726526,111.34,19.421,19.414,9.45899408]
[1693619726527,111.34,19.421,19.416,9.45899408]
[1693619726726,111.34,19.421,19.417,9.45899408]
[1693619726927,111.34,19.421,19.418,9.45899408]
[1693619727125,111.34,19.421,19.413,132.9931]